Cogmind - Beta 16 @@@ ROGUE MODE // 2026.01.12 @ 23:01:35 Player: monistgf Result: Self-destructed Performance ------------- Evolutions (9) 4500 Regions Visited (23) 4600 Robots Destroyed (122) 610 Value Destroyed (4519) 4519 Prototype IDs (55) 1100 Alien Tech Used (2) 400 Bonus (6861) 6861 TOTAL SCORE: 22590 Bonus ------- High Alert Combat Kills 276 Follower Combat Kills 2002 Network Hubs Disabled 200 Met Data Miner 300 Built Enhanced Grunts 300 A7 Reached Mainframe 300 Met R17 at Cetus 500 Used Core Reset Matrix 3000 Friendly Fire -17 Cogmind --------- Core Integrity 206/1600 Matter 255/300 Energy 190/190 System Corruption 11% Temperature Cool (0) Movement Treading (160) Location -1/Access Parts ------- > --- POWER (2) -------- Light Quantum Reactor > --- PROPULSION (8) --- Advanced Heavy Siege Treads Centrium Leg > --- UTILITY (12) ----- Advanced Heat Sink Advanced Terrain Scan Processor > --- WEAPON (3) ------- (None) > --- INVENTORY (5) ---- Faulty Experimental Field Recycling Unit (0) Smartbomb Launcher Peak State ------------ > --- POWER ------------ Antimatter Reactor Light Particle Reactor > --- PROPULSION ------- Improved Gyrokinetic Inverter Improved Gyrokinetic Inverter Improved Gyrokinetic Inverter Improved Gyrokinetic Inverter Improved Gyrokinetic Inverter Combat Antigrav System Combat Antigrav System > --- UTILITY ---------- Large Storage Unit Long-range Sensor Array Advanced Targeting Computer Advanced Targeting Computer Improved Armor Integrity Analyzer Improved Transmission Jammer Improved Hacking Suite Improved Hacking Suite Advanced Hacking Suite Advanced System Shield Advanced Component Analysis Suite Experimental Field Recycling Unit > --- WEAPON ----------- Plasma Sword Enhanced Force Lance Enhanced Force Lance > --- INVENTORY -------- Quantum Reactor KE Penetrator Heavy Gauss Cannon Enhanced Hardcell Cannon Smartbomb Launcher Force Lance [Rating: 159] Favorites ----------- Power Quantum Reactor Engine Light Deuterium Engine Power Core Light Nuclear Core Reactor Quantum Reactor Propulsion Improved Gravmag System Treads Light Treads Leg Aluminum Leg Wheel Wheel Hover Unit Improved Gravmag System Utility Improved Hacking Suite Device Improved Terrain Scanner Storage Large Storage Unit Processor Visual Processing Unit Hackware Improved Hacking Suite Protection Light Regenerative Plating Weapon Advanced KE Penetrator Energy Gun Small Laser Ballistic Gun Advanced KE Penetrator Ballistic Cannon Heavy Gauss Cannon Launcher Grenade Launcher Impact Weapon Impact Mace Slashing Weapon Ionic Axe Piercing Weapon Lance Build | -11 -10 -10 -10 -9 -8 -7 -7 -7 -7 -7 -7 -6 -6 -5 -5 -5 -5 -5 -4 -3 -3 -2 -1 ------- Run | Yrd Mat Min Exi Min Mat Fac Was Fac Low Low Dat Pro Fac Fac Ext Cet Arc Hub Fac Res Qua Res Acc Slots Evolved 18 | . . . . . 4 2 . . . . . . 2 2 . . . . 2 2 . 2 2 Power 1 | . . . . . . . . . . . . . . . . . . . 1 . . . . Propulsion 6 | . . . . . 2 1 . . . . . . 1 . . . . . 1 . . 1 . Utility 10 | . . . . . 1 1 . . . . . . 1 2 . . . . . 2 . 1 2 Weapon 1 | . . . . . 1 . . . . . . . . . . . . . . . . . . Parts Attached 185 | . 4 5 2 1 6 14 . 16 6 . . 2 4 35 14 10 5 4 14 5 14 6 18 Power 21 | . 1 . . . 1 2 . 2 . . . . . 6 1 1 . . 1 1 2 1 2 Engine 4 | . . . . . . 2 . . . . . . . 1 . . . . . . . . 1 Core 10 | . 1 . . . 1 . . 2 . . . . . 5 1 . . . . . . . . Reactor 7 | . . . . . . . . . . . . . . . . 1 . . 1 1 2 1 1 Propulsion 64 | . 1 2 . . 2 5 . 8 2 . . 1 1 15 5 2 1 1 9 1 3 1 4 Treads 4 | . . 2 . . . . . . . . . . . . . . . . . . . . 2 Leg 3 | . 1 . . . . . . 1 . . . . . . . . . . . . . . 1 Wheel 8 | . . . . . 2 5 . 1 . . . . . . . . . . . . . . . Hover 49 | . . . . . . . . 6 2 . . 1 1 15 5 2 1 1 9 1 3 1 1 Flight . | . . . . . . . . . . . . . . . . . . . . . . . . Utility 66 | . 2 1 2 . . 4 . 4 3 . . . 3 7 6 4 4 2 3 3 6 2 10 Device 40 | . 1 1 1 . . 2 . 3 2 . . . 1 4 4 2 3 1 1 2 3 2 7 Storage 1 | . . . 1 . . . . . . . . . . . . . . . . . . . . Processor 9 | . . . . . . 1 . 1 . . . . . . . 1 . 1 . . 2 . 3 Hackware 7 | . . . . . . . . . . . . . 1 2 . . 1 . 2 . 1 . . Protection 9 | . 1 . . . . 1 . . 1 . . . 1 1 2 1 . . . 1 . . . Artifact . | . . . . . . . . . . . . . . . . . . . . . . . . Weapon 34 | . . 2 . 1 3 3 . 2 1 . . 1 . 7 2 3 . 1 1 . 3 2 2 Energy Gun 2 | . . 1 . 1 . . . . . . . . . . . . . . . . . . . Energy Cannon . | . . . . . . . . . . . . . . . . . . . . . . . . Ballistic Gun 10 | . . . . . 2 1 . . . . . . . . 2 3 . 1 . . . . 1 Ballistic Cannon 4 | . . . . . . 1 . . . . . . . 1 . . . . . . 1 . 1 Launcher 3 | . . 1 . . . 1 . . 1 . . . . . . . . . . . . . . Special Weapon . | . . . . . . . . . . . . . . . . . . . . . . . . Impact Weapon 3 | . . . . . . . . 2 . . . 1 . . . . . . . . . . . Slashing Weapon 8 | . . . . . 1 . . . . . . . . 5 . . . . 1 . 1 . . Piercing Weapon 4 | . . . . . . . . . . . . . . 1 . . . . . . 1 2 . Special Melee Weapon . | . . . . . . . . . . . . . . . . . . . . . . . . Unidentified Prototypes 10 | . . . . . . . . 2 . . . . . 2 . 1 . 1 . . 2 1 1 Corrupted Parts 1 | . . . . . . . . . . . . 1 . . . . . . . . . . . System Corruption 3 | . . . . . . . . . . . . 3 . . . . . . . . . . . Parts Lost 75 | . 1 . . . . 6 . 2 2 . . 1 . 16 1 1 1 2 7 2 . 12 21 Power 9 | . . . . . . 1 . . . . . . . 3 . . . . . . . 2 3 Propulsion 30 | . . . . . . 4 . 1 2 . . 1 . 4 1 1 1 . 3 . . 4 8 Utility 19 | . 1 . . . . . . 1 . . . . . 7 . . . 1 1 . . 5 3 Weapon 17 | . . . . . . 1 . . . . . . . 2 . . . 1 3 2 . 1 7 Highest Loss Streak 11 | . 1 . . . . 3 . 2 1 . . 1 . 11 1 1 1 1 4 1 . 8 9 To Critical Strikes . | . . . . . . . . . . . . . . . . . . . . . . . . Average Backups 11 | . 7 7 7 8 9 12 12 13 12 14 15 14 14 13 12 14 14 14 11 12 12 11 4 Power 1 | . 1 1 1 1 1 1 1 1 1 1 1 1 1 . . 1 1 1 . 1 1 2 . Propulsion 2 | . 4 2 2 2 1 3 2 2 1 1 1 . . 2 3 4 3 3 2 4 4 2 . Utility 3 | . . . 1 1 1 2 4 4 5 6 7 7 7 5 5 5 5 6 5 4 3 2 1 Weapon 4 | . 1 3 3 4 5 5 5 6 5 5 6 5 6 5 3 4 5 4 3 2 2 4 2 Tool/Special . | . . . . . . . . . . . . . . . . . . . . . . . . Unused Backups 38 | . 5 2 . . . 3 . 5 . . . 1 2 6 6 3 2 . 1 . 1 . 1 Power 4 | . 1 . . . . . . . . . . 1 . 1 . 1 . . . . . . . Propulsion 5 | . 1 1 . . . . . 1 . . . . . . 1 . 1 . . . . . . Utility 13 | . 1 . . . . 1 . 1 . . . . 1 2 3 1 1 . 1 . 1 . . Weapon 16 | . 2 1 . . . 2 . 3 . . . . 1 3 2 1 . . . . . . 1 Tool/Special . | . . . . . . . . . . . . . . . . . . . . . . . . Average Slot Usage (%) 94 | . 96 100 100 100 98 97 92 97 99 100 100 99 93 93 92 100 100 99 95 97 98 98 51 Core 5 | . 8 14 14 14 9 4 . 5 7 7 7 7 6 4 4 . . . . . . . . Reactor 2 | . . . . . . . . . . . . . . . . 4 5 5 7 9 8 8 3 Treads 6 | . . 20 28 28 18 11 . . . . . . . . . . . . . . . . 1 Leg 1 | . 28 7 . . . . . 1 . . . . . . . . . . . . . . . Wheel 3 | . . . . . 17 24 30 11 . . . . . . . . . . . . . . . Hover 21 | . . . . . . . . 22 37 38 38 37 33 31 33 35 35 35 35 33 32 33 14 Device 9 | . 1 14 14 14 17 12 15 11 7 7 7 7 6 9 6 6 6 5 4 8 8 11 8 Storage 7 | . 14 14 14 14 9 7 7 7 7 7 7 7 6 5 5 5 5 5 4 4 4 4 2 Processor 4 | . . . . . . 6 7 7 7 7 7 7 6 5 5 11 11 10 5 4 4 4 6 Hackware 8 | . . . . . . . . . . . . . 3 13 11 11 15 17 20 19 19 17 8 Protection 2 | . 9 . . . . 2 . 2 6 7 7 7 8 2 5 3 . . . 4 3 3 . Energy Gun 3 | . 14 13 14 14 12 4 . . . . . . . . . . . . . . . . . Ballistic Gun 7 | . 14 14 14 14 13 13 15 1 . . . . . . 1 16 11 10 10 8 2 . . Impact Weapon 2 | . . . . . . . . 13 13 15 15 14 12 1 . . . . . . . . . Slashing Weapon 3 | . . . . . . . . 6 7 7 7 7 6 10 8 . 4 5 4 3 4 6 . Peak Build Rating 159 | . 9 12 12 10 22 28 30 54 55 54 54 55 63 95 94 102 102 104 121 132 142 155 159 Average Rating 68 | . 7 10 11 10 17 23 29 46 53 54 54 54 58 82 87 97 99 102 110 128 135 149 86 On Entrance 59 | 6 6 9 12 10 10 19 28 30 53 54 54 54 55 63 74 93 102 100 97 119 122 138 128 Avg Prop Armor Cover (%) 9 | . . . . . 16 11 . 5 . . . . . 5 . . . . . . . 2 6 Naked Turns 56 | . . . . . . . . . . . . . . . . . . . . . . . 56 Heaviest Build 90 | 13 16 14 29 30 35 48 41 48 47 40 40 46 42 57 63 64 60 58 75 81 90 86 83 Greatest Support 155 | 20 20 40 40 40 40 46 46 46 43 43 43 44 54 65 65 64 63 63 83 86 88 92 155 Greatest Overweight (x) 4 | . . . . . 1 1 . 1 1 . . 1 . 2 . 1 . . . . 1 . 4 Average Overweight (x) . | . . . . . . . . . . . . . . . . . . . . . . . . Largest Inventory Capacity 15 | . 8 8 15 15 15 15 15 15 15 15 15 15 15 15 15 15 15 15 15 15 15 15 15 Average Capacity 13 | . 8 8 8 15 15 15 15 15 15 15 15 15 15 15 15 15 15 15 14 15 15 15 10 Most Carried 15 | . 8 8 8 10 13 15 15 15 14 15 15 15 15 15 15 15 15 15 15 14 15 15 9 Average Carried 11 | . 7 7 8 9 10 13 14 14 12 14 15 14 14 13 13 14 14 14 12 12 13 12 5 Final Capacity 15 | 8 8 8 15 15 15 15 15 15 15 15 15 15 15 15 15 15 15 15 15 15 15 15 5 Final Carried 15 | 6 8 8 8 10 13 13 15 14 13 15 15 14 15 7 15 15 15 14 15 14 15 8 3 Class Distribution -------------------- 34% | Hacker-Mutant 34% | Mutant 7% | Skirmisher 7% | Commander-Mutant 4% | Gladiator 3% | Commander-Gunner Dominant Class ---------------- Mutant | -10/Materials Mutant | -10/Mines Mutant | -10/Exiles Mutant | -9/Mines Skirmisher | -8/Materials Skirmisher | -7/Factory Scavenger-Skirmisher | -7/Waste Gladiator | -7/Factory Mutant | -7/Lower Caves Mutant | -7/Lower Caves Mutant | -7/Data Miner Mutant | -6/Proximity Caves Mutant | -6/Factory Hacker-Mutant | -5/Factory Hacker-Mutant | -5/Extension Commander-Gunner | -5/Cetus Commander-Mutant | -5/Archives Commander-Mutant | -5/Hub_04(d) Hacker-Mutant | -4/Factory Hacker-Mutant | -3/Research Hacker-Mutant | -3/Quarantine Hacker-Mutant | -2/Research Hacker-Mutant | -1/Access Resources | -11 -10 -10 -10 -9 -8 -7 -7 -7 -7 -7 -7 -6 -6 -5 -5 -5 -5 -5 -4 -3 -3 -2 -1 ----------- Run | Yrd Mat Min Exi Min Mat Fac Was Fac Low Low Dat Pro Fac Fac Ext Cet Arc Hub Fac Res Qua Res Acc Matter Collected 4538 | 200 110 72 13 30 169 259 . 309 308 6 . 94 106 550 348 232 125 263 200 119 353 132 540 Remotely 24 | . . . . . . . . . . . . . . . . . . . . . . . 24 Salvage Created 5540 | . 249 64 . . 176 430 . 276 231 . . 177 136 964 568 105 344 671 150 76 353 132 438 Parts 239 | . 12 7 . . 10 16 . 9 15 . . 1 2 37 37 4 24 18 7 6 20 3 11 Haulers Intercepted 5 | . . . . . . . . . . . . . . 3 . . . 1 . . 1 . . Recyclers Shooed 2 | . . . . . . . . . . . . . . . . . . . . . 1 . 1 Parts Field Recycled . | . . . . . . . . . . . . . . . . . . . . . . . . Retrieved Matter . | . . . . . . . . . . . . . . . . . . . . . . . . Parts Self-Destructed 10 | . . . . . . . . . 6 4 . . . . . . . . . . . . . Prevented 11 | . . . . . . . . . 9 . . 2 . . . . . . . . . . . Parts Restored . | . . . . . . . . . . . . . . . . . . . . . . . . Kills | -11 -10 -10 -10 -9 -8 -7 -7 -7 -7 -7 -7 -6 -6 -5 -5 -5 -5 -5 -4 -3 -3 -2 -1 ------- Run | Yrd Mat Min Exi Min Mat Fac Was Fac Low Low Dat Pro Fac Fac Ext Cet Arc Hub Fac Res Qua Res Acc Combat Hostiles Destroyed 72 | . 6 2 . . 3 10 . 3 7 . . 3 . 14 5 1 1 9 . 1 . 2 5 Melee 24 | . . . . . . . . 2 2 . . . . 13 5 . . . . . . 2 . Guns 25 | . 6 . . . 3 3 . 1 . . . . . . . 1 1 9 . 1 . . . Cannons 5 | . . . . . . 2 . . . . . . . . . . . . . . . . 3 AOE 13 | . . 2 . . . 5 . . 3 . . . . 1 . . . . . . . . 2 Classes Destroyed 15 | . 1 1 . . 1 7 . 1 . . . . . 1 1 . . 1 . . 1 . . Worker 12 | . . . . . . 1 . 4 . . . . 1 1 . . . 1 1 1 2 . . Builder 6 | . . . . . . . . . . . . . . . 4 . . 1 . . 1 . . Tunneler 4 | . . 1 . . . . . 1 . . . . 1 . . . . . . 1 . . . Hauler 5 | . . . . . . . . . . . . . . 3 . . . 1 . . 1 . . Recycler 8 | . . . . . . 2 . 1 . . . . 1 . 1 . . . 1 . 1 . 1 Mechanic 1 | . . . . . . . . . . . . . . . . . . . . . 1 . . Operator 10 | . . . . . 1 . . . . . . . . . 1 . 7 . . . 1 . . Watcher 4 | . . . . . . 2 . . . . . . . . . 1 . 1 . . . . . Swarmer 15 | . . . . . . 1 . . 5 . . . . 7 . . . . . 1 . 1 . Cutter 1 | . . . . . . . . . . . . . . . . . . 1 . . . . . Grunt 34 | . 6 2 . . 3 6 . 1 . . . 2 . 3 2 . . 6 . . . 1 2 Brawler 1 | . . . . . . 1 . . . . . . . . . . . . . . . . . Duelist 3 | . . . . . . 1 . . . . . 1 . . . . . . . . . . 1 Sentry 10 | . . . . . . . . 1 1 . . . . 2 3 . 1 2 . . . . . Programmer 7 | . . . . . . 1 . 1 1 . . . . 2 . . . . . . . . 2 Cetus Guard 1 | . . . . . . . . . . . . . . . . 1 . . . . . . . Best Kill Streak 8 | . 4 2 . . 3 8 . 2 3 . . 3 1 5 3 1 5 6 1 3 2 1 5 Combat Bots Only 5 | . 4 2 . . 3 4 . 1 3 . . 3 . 5 2 1 1 3 . 1 . 1 4 Max Kills in Single Turn 7 | . 1 1 . . 1 7 . 1 2 . . 1 1 2 1 1 1 2 1 2 1 1 1 Gunslinging 1 | . . . . . . . . . . . . . . . . . . 1 . . . . . Exploded 4 | . . 1 . . . 4 . . 2 . . . . 1 . . . . . . . . 1 Melee 2 | . . . . . . . . 1 1 . . . . 2 1 . . . . . . 1 . Uniques/NPCs Destroyed . | . . . . . . . . . . . . . . . . . . . . . . . . Combat | -11 -10 -10 -10 -9 -8 -7 -7 -7 -7 -7 -7 -6 -6 -5 -5 -5 -5 -5 -4 -3 -3 -2 -1 -------- Run | Yrd Mat Min Exi Min Mat Fac Was Fac Low Low Dat Pro Fac Fac Ext Cet Arc Hub Fac Res Qua Res Acc Hostile Shots Fired 1020 | . 37 9 . . 13 55 . 149 66 4 . 14 2 158 17 17 2 16 88 36 4 106 227 Missed 359 | . 7 2 . . 3 12 . 61 35 1 . 5 1 53 5 3 . 4 46 14 1 31 75 Hits 661 | . 30 7 . . 10 43 . 88 31 3 . 9 1 105 12 14 2 12 42 22 3 75 152 Melee 7 | . . . . . . 2 . . . . . . . . . . . 3 . . . . 2 Projectile 654 | . 30 7 . . 10 41 . 88 31 3 . 9 1 105 12 14 2 9 42 22 3 75 150 AOE 1 | . . . . . . . . . . . . . . . . . . . . . . . 1 Critical Strikes 42 | . . . . . . 3 . 1 . . . 1 . 5 1 6 . 1 1 1 1 4 17 Part Disruptions 2 | . . . . . . . . . . . . . . . . . . . . . . . 2 Damage Taken 13329 | . 402 119 . . 161 732 . 653 371 47 . 159 19 2274 237 475 78 394 794 521 116 1743 4034 Core 2832 | . 23 11 . . 33 80 . 71 58 . . 58 . 357 61 24 20 19 96 101 15 411 1394 Absorbed by Shields 126 | . . . . . . . . 32 . . . . . . 94 . . . . . . . . Redirected to Shielding 95 | . . . . . . . . . . . . . . 95 . . . . . . . . . Regen/Repaired (Parts) 692 | . . . . . . . . . . . . . . . . . . . 405 39 187 61 . Core Remaining (%) 82 | 100 . . . 86 94 . . . . . . 61 100 . . . . 51 91 . 91 71 . Volleys Fired 205 | . 25 6 . 1 14 24 . 6 6 . . 2 1 22 25 11 5 24 . 8 2 . 23 Largest 3 | . 2 2 . 2 3 3 . 3 1 . . 1 1 1 1 3 3 2 . 2 1 . 3 Hottest 126 | . 60 60 . 70 110 95 . 93 46 . . 46 40 46 44 103 105 70 . 66 51 . 126 Shots Fired 377 | . 50 10 . 2 42 67 . 13 6 . . 2 1 22 25 29 15 48 . 11 2 . 32 Gun 281 | . 50 8 . 2 42 55 . 8 . . . . . . . 29 15 48 . 11 1 . 12 Cannon 83 | . . . . . . 9 . 5 3 . . . 1 19 25 . . . . . 1 . 20 Launcher 13 | . . 2 . . . 3 . . 3 . . 2 . 3 . . . . . . . . . Special . | . . . . . . . . . . . . . . . . . . . . . . . . Kinetic 304 | . 25 5 . 1 25 50 . 13 3 . . . 1 19 25 29 15 48 . 11 2 . 32 Thermal 60 | . 25 3 . 1 17 14 . . . . . . . . . . . . . . . . . Explosive 5 | . . 2 . . . 3 . . . . . . . . . . . . . . . . . Electromagnetic 8 | . . . . . . . . . 3 . . 2 . 3 . . . . . . . . . Robot Hit Streak 15 | . 7 7 . 3 15 9 . 3 . . . 1 . 2 . 5 12 6 . 2 . . 15 Robot Miss Streak 5 | . 2 1 . . 3 4 . 5 1 . . . . 1 . 3 1 3 . 2 . . 1 Penetration Max 1 | . . . . . . . . . . . . . . . . 1 . 1 . 1 . . . Secondary Targets 3 | . . . . . . 1 . . . . . . . . . 1 . 1 . . . . . Max Gunslinging Chain 1 | . . . . . . 1 . . . . . . . . . 1 . 1 . . . . . Shots Hit Robots 355 | . 32 5 . 2 27 40 . 27 6 . . 7 3 46 23 20 24 29 4 6 12 9 33 Core Hits 177 | . 14 5 . . 12 29 . 8 4 . . 3 1 23 14 10 6 19 3 4 6 3 13 Critical Kills 6 | . . . . . . . . . . . . . . . . 1 1 4 . . . . . Critical Parts Destroyed 15 | . . . . . . . . 4 1 . . 2 . . . . 3 4 . 1 . . . Critical Strikes 49 | . . . . . 2 5 . 4 1 . . 2 . 7 3 1 4 9 . 1 2 3 5 Burn 5 | . . . . . 2 3 . . . . . . . . . . . . . . . . . Destroy 15 | . . . . . . . . . . . . . . . . 1 4 9 . 1 . . . Blast 7 | . . . . . . 2 . . . . . . . . . . . . . . . . 5 Smash 7 | . . . . . . . . 4 1 . . 2 . . . . . . . . . . . Sever 10 | . . . . . . . . . . . . . . 5 3 . . . . . . 2 . Impale 5 | . . . . . . . . . . . . . . 2 . . . . . . 2 1 . Melee Attacks 283 | . . . . . 3 . . 46 9 . . 10 23 88 25 . 12 6 13 7 19 15 7 Impact 73 | . . . . . . . . 38 7 . . 7 18 3 . . . . . . . . . Slashing 168 | . . . . . 3 . . 8 2 . . 3 5 71 22 . 12 6 12 7 9 8 . Piercing 42 | . . . . . . . . . . . . . . 14 3 . . . 1 . 10 7 7 Sneak Attacks 42 | . . . . . . . . 6 2 . . . 3 3 6 . 9 1 2 . 9 . 1 Combat Hostiles 3 | . . . . . . . . . 2 . . . . . 1 . . . . . . . . Follow-up Attacks 35 | . . . . . . . . 6 2 . . 4 . 18 4 . . . . . . 1 . Damage Inflicted 15643 | . 368 162 . 52 374 2032 . 1348 514 . . 346 284 2312 1333 563 1410 1168 221 191 984 382 1599 Guns 3838 | . 368 60 . 25 374 457 . 105 . . . . . . . 563 376 1006 . 191 . . 313 Cannons 936 | . . . . . . 174 . 30 . . . . . . . . . . . . . . 732 Explosions 2460 | . . 102 . . . 1401 . . 137 . . 124 . 245 . . . 48 . . . . 403 Melee 8376 | . . . . . . . . 1213 377 . . 216 284 2067 1333 . 1034 114 221 . 984 382 151 Ramming 33 | . . . . 27 . . . . . . . 6 . . . . . . . . . . . Kinetic 4313 | . 181 48 . 12 239 517 . 135 . . . . . . . 563 376 1006 . 191 . . 1045 Thermal 1674 | . 187 12 . 13 135 1327 . . . . . . . . . . . . . . . . . Explosive 771 | . . 102 . . . 188 . . . . . . . 78 . . . . . . . . 403 Electromagnetic 476 | . . . . . . . . . 137 . . 124 . 167 . . . 48 . . . . . Impact 2052 | . . . . . . . . 1075 377 . . 142 284 174 . . . . . . . . . Slashing 5134 | . . . . . . . . 138 . . . 74 . 1698 1257 . 1034 114 221 . 348 250 . Piercing 1190 | . . . . . . . . . . . . . . 195 76 . . . . . 636 132 151 Highest Corruption 11 | . . . . . . 1 8 8 5 5 5 8 . 5 6 1 1 1 2 . . . 11 Average Corruption 3 | . . . . . . 1 8 7 3 5 5 6 . 1 3 1 1 1 2 . . . 4 Corruption Purged 16 | . . . . . . 1 . 4 1 . . . . 3 6 . 1 . . . . . . Corruption Blocked . | . . . . . . . . . . . . . . . . . . . . . . . . Effects 70 | . . . . . . . 3 18 3 4 1 5 . 8 6 3 . 2 5 . . . 12 Message Errors 18 | . . . . . . . 1 5 . 1 1 1 . 4 . 1 . 1 . . . . 3 Matter Fused 16 | . . . . . . . . 5 . 1 . 2 . 1 2 1 . 1 . . . . 3 Heat Flow Errors 12 | . . . . . . . . 3 1 1 . 1 . 2 2 . . . 1 . . . 1 Energy Discharges 10 | . . . . . . . 1 2 . . . . . . 1 1 . . 2 . . . 3 Parts Rejected 2 | . . . . . . . . . . . . . . . 1 . . . 1 . . . . Parts Fused 1 | . . . . . . . . 1 . . . . . . . . . . . . . . . Data Loss (minor) 5 | . . . . . . . 1 1 1 . . . . . . . . . . . . . 2 Data Loss (major) 3 | . . . . . . . . . 1 . . . . 1 . . . . 1 . . . . Alerts 2 | . . . . . . . . . . 1 . 1 . . . . . . . . . . . Weapon Failures 1 | . . . . . . . . 1 . . . . . . . . . . . . . . . Overload Shots . | . . . . . . . . . . . . . . . . . . . . . . . . Overflow Damage 2306 | . . . . . . 294 . 510 133 . . 102 148 183 49 . 432 64 . . 256 20 115 Projectiles 52 | . . . . . . . . . . . . . . . . . . . . . . . 52 Explosions 326 | . . . . . . 294 . . . . . . . 32 . . . . . . . . . Melee 1928 | . . . . . . . . 510 133 . . 102 148 151 49 . 432 64 . . 256 20 63 Knockbacks 14 | . . . . . . 4 . 1 1 . . . 1 . . . . . . . . . 7 Impact 3 | . . . . . . . . 1 1 . . . 1 . . . . . . . . . . Kinetic 11 | . . . . . . 4 . . . . . . . . . . . . . . . . 7 Secondary . | . . . . . . . . . . . . . . . . . . . . . . . . Self-Inflicted Damage 640 | . . . . . . 39 . . . . . 10 . 224 . . . 100 . . . . 267 Shots 8 | . . . . . . 1 . . . . . 1 . 3 . . . 1 . . . . 2 Rammed 4 | . . . . 3 . . . . . . . 1 . . . . . . . . . . . Targets Rammed 4 | . . . . 3 . . . . . . . 1 . . . . . . . . . . . Kicked . | . . . . . . . . . . . . . . . . . . . . . . . . Crushed . | . . . . . . . . . . . . . . . . . . . . . . . . Highest Temperature 317 | . 192 33 . 15 276 287 . 194 250 259 . 274 . 168 206 24 6 5 317 94 . 227 306 Average Temperature 69 | . 70 17 . 10 112 95 . 62 105 259 . 118 . 40 22 10 4 5 82 24 . 76 118 Received Heat Transfer 2085 | . 216 63 . . 90 315 . 205 48 . . 81 9 198 47 9 27 63 84 45 . 216 369 Effects 6 | . . . . . 1 . . . . . . 1 . . . . . . . . . . 4 Shutdowns 1 | . . . . . . . . . . . . . . . . . . . . . . . 1 Energy Bleed 2 | . . . . . 1 . . . . . . 1 . . . . . . . . . . . Interference 3 | . . . . . . . . . . . . . . . . . . . . . . . 3 Siege Activations . | . . . . . . . . . . . . . . . . . . . . . . . . Martial Activations . | . . . . . . . . . . . . . . . . . . . . . . . . Shielding Activations . | . . . . . . . . . . . . . . . . . . . . . . . . Robots Disrupted . | . . . . . . . . . . . . . . . . . . . . . . . . Combat Hostiles . | . . . . . . . . . . . . . . . . . . . . . . . . Robots Corrupted 7 | . . . . . . . . . 2 . . 3 1 1 . . . . . . . . . Combat Hostiles 5 | . . . . . . . . . 2 . . 3 . . . . . . . . . . . Parts Fried 16 | . . . . . . . . 7 . . . 7 1 1 . . . . . . . . . Impact Corruptions 25 | . . . . . . . . 12 5 . . 3 4 1 . . . . . . . . . Robots Melted . | . . . . . . . . . . . . . . . . . . . . . . . . Combat Hostiles . | . . . . . . . . . . . . . . . . . . . . . . . . Parts Melted 1 | . 1 . . . . . . . . . . . . . . . . . . . . . . Heat Transferred 2335 | . 425 25 . 37 543 1305 . . . . . . . . . . . . . . . . . Parts Sabotaged . | . . . . . . . . . . . . . . . . . . . . . . . . Parts Stolen . | . . . . . . . . . . . . . . . . . . . . . . . . Parts Stripped . | . . . . . . . . . . . . . . . . . . . . . . . . Power Chain Reactions . | . . . . . . . . . . . . . . . . . . . . . . . . Alert | -11 -10 -10 -10 -9 -8 -7 -7 -7 -7 -7 -7 -6 -6 -5 -5 -5 -5 -5 -4 -3 -3 -2 -1 ------- Run | Yrd Mat Min Exi Min Mat Fac Was Fac Low Low Dat Pro Fac Fac Ext Cet Arc Hub Fac Res Qua Res Acc Maximum Alert Level 3 | . . . . . . 1 . . . . . . . 2 2 2 1 3 2 1 . . 1 Low Security (%) 72 | . 100 100 . 100 100 78 100 100 . . . . 100 70 . . 2 11 67 94 100 100 97 Level 1 17 | . . . . . . 21 . . . . . . . 17 77 9 97 36 26 5 . . 2 Level 2 8 | . . . . . . . . . . . . . . 11 22 90 . 21 5 . . . . Level 3 1 | . . . . . . . . . . . . . . . . . . 30 . . . . . Level 4 . | . . . . . . . . . . . . . . . . . . . . . . . . Level 5 . | . . . . . . . . . . . . . . . . . . . . . . . . High Security . | . . . . . . . . . . . . . . . . . . . . . . . . Max Security . | . . . . . . . . . . . . . . . . . . . . . . . . Peak Influence 1014 | . 91 154 . 15 67 398 125 99 . . . . 36 611 639 539 381 1014 484 209 138 87 216 Initial 484 | . . 25 . . . 4 125 59 . . . . 28 17 281 328 192 115 484 . 117 3 . Average 143 | . 44 69 . . 11 92 106 42 . . . . 10 135 384 455 346 536 146 54 30 25 45 Influence Increases 7020 | . 166 229 . 15 85 549 . 229 190 15 . 115 96 1017 758 401 249 1320 405 276 177 172 556 Destroy 0b10 Robot/C 2340 | . 120 100 . . 60 200 . 60 140 . . 60 . 300 360 160 80 480 . 20 . 40 160 Destroy 0b10 Robot/NC 275 | . . 5 . . 5 25 . 30 . . . . 15 20 30 10 35 40 10 10 35 . 5 Destroy Leader 428 | . 30 20 . . 10 34 . 20 20 . . 10 . 86 40 . . 106 . 10 2 . 40 Allied During Kill 944 | . . 4 . . . . . . . . . . . 2 230 167 115 372 . . . . 54 Successful Hack 310 | . . . . . 7 . . . . . . . 24 60 . 7 . 10 47 14 87 54 . Disable Machine 450 | . . 60 . . . 210 . 30 . . . . . 45 . . 15 30 . . 30 . 30 Destroy Structure 728 | . 1 40 . . 3 50 . 44 . . . . 12 114 38 42 4 252 18 12 8 3 87 Partial Spotted 180 | . . . . . . . . 15 . . . . . 30 30 15 . 15 30 15 15 15 . Lose Combat Pursuer 1365 | . 15 . . 15 . 30 . 30 30 15 . 45 45 360 30 . . 15 300 195 . 60 180 Influence Decreases 7020 | . 100 260 35 15 74 202 273 314 100 78 27 70 105 478 746 507 399 662 1394 67 379 179 556 Entered New Map 2082 | . . 41 35 . . 7 233 26 . 18 27 . 17 19 294 259 289 216 505 . 92 4 . Time Decay 3208 | . 90 219 . 15 74 135 40 268 80 60 . 60 88 277 362 198 100 246 275 52 287 68 214 Search Patrol Dispatched 100 | . . . . . . . . . . . . . . . . . . . 100 . . . . Lost Part 700 | . 10 . . . . 60 . 20 20 . . 10 . 160 10 10 10 20 70 15 . 107 178 Lost Ally 484 | . . . . . . . . . . . . . . 20 80 40 . 180 . . . . 164 Purge Threat 446 | . . . . . . . . . . . . . . 2 . . . . 444 . . . . Squads Dispatched 37 | . 1 . . . . 3 . 2 . . . . . 12 . . . 9 4 . 3 1 2 Investigation 9 | . . . . . . . . . . . . . . 2 . . . 4 3 . . . . Extermination 12 | . . . . . . 1 . 1 . . . . . 3 . . . 1 1 . 2 1 2 Reinforcement 11 | . 1 . . . . 2 . 1 . . . . . 2 . . . 4 . . 1 . . Assault . | . . . . . . . . . . . . . . . . . . . . . . . . Garrison 5 | . . . . . . . . . . . . . . 5 . . . . . . . . . Intercept . | . . . . . . . . . . . . . . . . . . . . . . . . Searches Triggered 1 | . . . . . . . . . . . . . . . . . . . 1 . . . . Data Miner Redirects 1 | . . . . . . . . . . . . . . . . . . . 1 . . . . Construction Impeded 2 | . . . . . . 1 . . . . . . . . . . . 1 . . . . . Haulers Reinforced . | . . . . . . . . . . . . . . . . . . . . . . . . Active Scanning Responses . | . . . . . . . . . . . . . . . . . . . . . . . . Cargo Convoy Interrupts . | . . . . . . . . . . . . . . . . . . . . . . . . Stealth | -11 -10 -10 -10 -9 -8 -7 -7 -7 -7 -7 -7 -6 -6 -5 -5 -5 -5 -5 -4 -3 -3 -2 -1 --------- Run | Yrd Mat Min Exi Min Mat Fac Was Fac Low Low Dat Pro Fac Fac Ext Cet Arc Hub Fac Res Qua Res Acc Distress Signals 13 | . 1 . . . . 2 . . . . . . 1 . . 2 . 3 1 . . 1 2 Communications Jammed 17 | . . . . . . . . . . . . . . . . . . . . . . 17 . Distress Signals 17 | . . . . . . . . . . . . . . . . . . . . . . 17 . Times Spotted 272 | . 9 4 . 1 5 19 6 7 8 3 . 7 10 44 19 10 7 21 24 18 8 19 23 Peak Tracking Total 10 | . 5 2 . 1 3 7 6 2 3 3 . 3 7 10 6 5 2 4 8 9 3 9 10 Tactical Retreats 47 | . 1 . . 1 . 2 . 2 1 1 . 2 2 11 2 . . 1 10 3 . 3 5 Traps | -11 -10 -10 -10 -9 -8 -7 -7 -7 -7 -7 -7 -6 -6 -5 -5 -5 -5 -5 -4 -3 -3 -2 -1 ------- Run | Yrd Mat Min Exi Min Mat Fac Was Fac Low Low Dat Pro Fac Fac Ext Cet Arc Hub Fac Res Qua Res Acc Traps Triggered 25 | . 1 . . . . 2 . 3 . . . . 1 2 4 . . 1 4 1 3 . 3 Indirectly . | . . . . . . . . . . . . . . . . . . . . . . . . Trap Hack Attempts . | . . . . . . . . . . . . . . . . . . . . . . . . Triggered . | . . . . . . . . . . . . . . . . . . . . . . . . Disarmed . | . . . . . . . . . . . . . . . . . . . . . . . . Reprogrammed . | . . . . . . . . . . . . . . . . . . . . . . . . Reused . | . . . . . . . . . . . . . . . . . . . . . . . . Traps Extracted . | . . . . . . . . . . . . . . . . . . . . . . . . Installed . | . . . . . . . . . . . . . . . . . . . . . . . . Triggered . | . . . . . . . . . . . . . . . . . . . . . . . . Most Traps Carried 1 | . . 1 1 1 1 1 1 1 . . . . . . . . . . . . . . . Machines | -11 -10 -10 -10 -9 -8 -7 -7 -7 -7 -7 -7 -6 -6 -5 -5 -5 -5 -5 -4 -3 -3 -2 -1 ---------- Run | Yrd Mat Min Exi Min Mat Fac Was Fac Low Low Dat Pro Fac Fac Ext Cet Arc Hub Fac Res Qua Res Acc Machines Disabled 31 | . . 4 . . . 14 . 2 . . . . . 3 . 1 1 2 . . 2 . 2 Max in Single Turn 13 | . . . . . . 13 . 2 . . . . . 3 . 1 1 2 . . 1 . 1 Garrison Access 4 | . . . . . . . . . . . . . . 1 . . . 1 1 . 1 . . Network Hub 1 | . . . . . . . . . . . . . . . . . . 1 . . . . . Machines Repaired . | . . . . . . . . . . . . . . . . . . . . . . . . Machines Dismantled . | . . . . . . . . . . . . . . . . . . . . . . . . Machines Sabotaged . | . . . . . . . . . . . . . . . . . . . . . . . . Overloaded Fab Kills . | . . . . . . . . . . . . . . . . . . . . . . . . Hacking | -11 -10 -10 -10 -9 -8 -7 -7 -7 -7 -7 -7 -6 -6 -5 -5 -5 -5 -5 -4 -3 -3 -2 -1 --------- Run | Yrd Mat Min Exi Min Mat Fac Was Fac Low Low Dat Pro Fac Fac Ext Cet Arc Hub Fac Res Qua Res Acc Machines Accessed 70 | . 1 . 2 . 3 2 . 3 . . 4 . 3 13 3 1 . 5 12 2 11 4 1 Terminals 50 | . 1 . . . 3 1 . 2 . . . . 3 10 3 1 . 4 7 2 8 4 1 Fabricators 4 | . . . . . . 1 . . . . . . . 1 . . . . 2 . . . . Repair Stations 3 | . . . . . . . . . . . . . . . . . . . 1 . 2 . . Recycling Units . | . . . . . . . . . . . . . . . . . . . . . . . . Scanalyzers 1 | . . . . . . . . . . . . . . . . . . . 1 . . . . Garrison Access 6 | . . . . . . . . 1 . . . . . 2 . . . 1 1 . 1 . . Total Hacks 323 | . 1 . 32 . 8 3 . 5 . . 32 . 8 31 7 3 . 12 68 20 64 24 5 Successful 212 | . . . 32 . 3 2 . . . . 32 . 3 19 2 1 . 6 47 15 35 12 3 Failed 111 | . 1 . . . 5 1 . 5 . . . . 5 12 5 2 . 6 21 5 29 12 2 Catastrophic 13 | . 1 . . . . 1 . 3 . . . . . 1 . . . . 3 . 4 . . Database Lockouts . | . . . . . . . . . . . . . . . . . . . . . . . . Manual 108 | . 1 . . . 5 2 . . . . . . 3 9 5 1 . 9 24 14 24 8 3 Terminals 211 | . 1 . . . 8 1 . 4 . . . . 8 26 7 3 . 11 39 20 54 24 5 Fabricators 15 | . . . . . . 2 . . . . . . . 3 . . . . 10 . . . . Repair Stations 16 | . . . . . . . . . . . . . . . . . . . 7 . 9 . . Recycling Units . | . . . . . . . . . . . . . . . . . . . . . . . . Scanalyzers 10 | . . . . . . . . . . . . . . . . . . . 10 . . . . Garrison Access 7 | . . . . . . . . 1 . . . . . 2 . . . 1 2 . 1 . . Terminal Hacks 168 | . . . 32 . 2 . . . . . 32 . 2 16 2 1 . 3 21 14 28 12 3 Record 47 | . . . 32 . . . . . . . 11 . . . . . . . . 1 3 . . Part Schematic 11 | . . . . . . . . . . . 11 . . . . . . . . . . . . Robot Schematic 7 | . . . . . . . . . . . 7 . . . . . . . . . . . . Robot Analysis 2 | . . . . . . . . . . . . . . . . . . . . . 2 . . Prototype ID Bank 16 | . . . . . 1 . . . . . 3 . . 3 . . . . 2 1 3 3 . Open Door 2 | . . . . . . . . . . . . . . 1 . 1 . . . . . . . Level Access Points 6 | . . . . . . . . . . . . . 1 . . . . 1 1 1 . 1 1 Branch Access Points 6 | . . . . . 1 . . . . . . . . 1 . . . . 1 1 1 1 . Machine Index 2 | . . . . . . . . . . . . . . . . . . . . . 2 . . Terminal Index 2 | . . . . . . . . . . . . . . . . . . . . 1 1 . . Fabricator Index 1 | . . . . . . . . . . . . . . . . . . . . 1 . . . Repair Station Index 2 | . . . . . . . . . . . . . . . . . . . . 1 1 . . Alert Level 7 | . . . . . . . . . . . . . . 2 . . . . 3 1 1 . . Unreport Threat 4 | . . . . . . . . . . . . . . 1 . . . . 3 . . . . Locate Traps 16 | . . . . . . . . . . . . . 1 3 2 . . 1 3 1 3 2 . Dispatch Records 1 | . . . . . . . . . . . . . . . . . . . . 1 . . . Surveillance Status 1 | . . . . . . . . . . . . . . . . . . . . . 1 . . Patrol Status 3 | . . . . . . . . . . . . . . . . . . . 1 1 1 . . Recall Investigation 5 | . . . . . . . . . . . . . . 2 . . . . 2 . 1 . . Recall Extermination 3 | . . . . . . . . . . . . . . . . . . . 1 . 2 . . Recall Reinforcements 1 | . . . . . . . . . . . . . . . . . . . . . 1 . . Hauler Manifests 1 | . . . . . . . . . . . . . . 1 . . . . . . . . . Registered Components 3 | . . . . . . . . . . . . . . . . . . . . 1 . 1 1 Registered Prototypes 1 | . . . . . . . . . . . . . . . . . . . . 1 . . . Zone Layout 18 | . . . . . . . . . . . . . . 2 . . . 1 4 1 5 4 1 Fabricator Hacks 8 | . . . . . . 1 . . . . . . . 2 . . . . 5 . . . . Network Status 1 | . . . . . . 1 . . . . . . . . . . . . . . . . . Load Schematic 3 | . . . . . . . . . . . . . . 1 . . . . 2 . . . . Build 4 | . . . . . . . . . . . . . . 1 . . . . 3 . . . . Repair Station Hacks 10 | . . . . . . . . . . . . . . . . . . . 6 . 4 . . Scan Component 6 | . . . . . . . . . . . . . . . . . . . 3 . 3 . . Repair 4 | . . . . . . . . . . . . . . . . . . . 3 . 1 . . Recycling Unit Hacks . | . . . . . . . . . . . . . . . . . . . . . . . . Scanalyzer 9 | . . . . . . . . . . . . . . . . . . . 9 . . . . Insert Component 4 | . . . . . . . . . . . . . . . . . . . 4 . . . . Analyze 3 | . . . . . . . . . . . . . . . . . . . 3 . . . . Retrieve Study 2 | . . . . . . . . . . . . . . . . . . . 2 . . . . Garrison Access Hacks 4 | . . . . . . . . . . . . . . 1 . . . 1 1 . 1 . . Seal Access 4 | . . . . . . . . . . . . . . 1 . . . 1 1 . 1 . . Unauthorized Hacks 13 | . . . . . 1 1 . . . . . . 1 . . . . 2 5 1 2 . . Terminals 8 | . . . . . 1 . . . . . . . 1 . . . . 2 1 1 2 . . Assimilate 1 | . . . . . . . . . . . . . . . . . . . . . 1 . . Botnet 5 | . . . . . 1 . . . . . . . 1 . . . . . 1 1 1 . . Sabotage 2 | . . . . . . . . . . . . . . . . . . 2 . . . . . Fabricators 4 | . . . . . . 1 . . . . . . . . . . . . 3 . . . . Report 1 | . . . . . . 1 . . . . . . . . . . . . . . . . . Prioritize 2 | . . . . . . . . . . . . . . . . . . . 2 . . . . Fabnet 1 | . . . . . . . . . . . . . . . . . . . 1 . . . . Repair Stations . | . . . . . . . . . . . . . . . . . . . . . . . . Recycling Units . | . . . . . . . . . . . . . . . . . . . . . . . . Scanalyzers 1 | . . . . . . . . . . . . . . . . . . . 1 . . . . Researchers 1 | . . . . . . . . . . . . . . . . . . . 1 . . . . Garrison Access . | . . . . . . . . . . . . . . . . . . . . . . . . Data Cores Recovered 2 | . . . . . 1 . . . . . . . . . 1 . . . . . . . . Used 2 | . . . . . 1 . . . . . . . . . 1 . . . . . . . . Hacking Detections 51 | . 1 . . . 3 2 . 3 . . . . 3 11 1 1 . 3 9 2 7 4 1 Full Trace Events 6 | . . . . . . . . . . . . . . 1 . . . 2 3 . . . . Feedback Events 1 | . . . . . . . . . . . . . . . . . . 1 . . . . . Corruption 1 | . . . . . . . . . . . . . . . . . . 1 . . . . . Feedback Blocked . | . . . . . . . . . . . . . . . . . . . . . . . . Robot Schematics Acquired 7 | . . . . . . . . . . . 7 . . . . . . . . . . . . Robots Built . | . . . . . . . . . . . . . . . . . . . . . . . . Authchips . | . . . . . . . . . . . . . . . . . . . . . . . . Time . | . . . . . . . . . . . . . . . . . . . . . . . . Total Robot Build Rating . | . . . . . . . . . . . . . . . . . . . . . . . . Part Schematics Acquired 14 | . . . . . . . . . . . 11 . . . . . . . 3 . . . . Parts Built 4 | . . . . . . . . . . . . . . 1 . . . . 3 . . . . Authchips . | . . . . . . . . . . . . . . . . . . . . . . . . Time 300 | . . . . . . . . . . . . . . 76 . . . . 224 . . . . Total Part Build Rating 24 | . . . . . . . . . . . . . . 5 . . . . 19 . . . . Part Studies Acquired 2 | . . . . . . . . . . . . . . . . . . . 2 . . . . Parts Repaired 4 | . . . . . . . . . . . . . . . . . . . 3 . 1 . . Time 94 | . . . . . . . . . . . . . . . . . . . 63 . 31 . . Parts Recycled . | . . . . . . . . . . . . . . . . . . . . . . . . Recycled Matter . | . . . . . . . . . . . . . . . . . . . . . . . . Retrieved Matter . | . . . . . . . . . . . . . . . . . . . . . . . . Retrieved Components . | . . . . . . . . . . . . . . . . . . . . . . . . Parts Scanalyzed 3 | . . . . . . . . . . . . . . . . . . . 3 . . . . Part Schematics Acquired 3 | . . . . . . . . . . . . . . . . . . . 3 . . . . Parts Damaged . | . . . . . . . . . . . . . . . . . . . . . . . . Bothacking | -11 -10 -10 -10 -9 -8 -7 -7 -7 -7 -7 -7 -6 -6 -5 -5 -5 -5 -5 -4 -3 -3 -2 -1 ------------ Run | Yrd Mat Min Exi Min Mat Fac Was Fac Low Low Dat Pro Fac Fac Ext Cet Arc Hub Fac Res Qua Res Acc Used RIF Installer . | . . . . . . . . . . . . . . . . . . . . . . . . Robots Hacked . | . . . . . . . . . . . . . . . . . . . . . . . . Non-combat . | . . . . . . . . . . . . . . . . . . . . . . . . Combat . | . . . . . . . . . . . . . . . . . . . . . . . . Robot Hacks Applied . | . . . . . . . . . . . . . . . . . . . . . . . . Relay Couplers Released . | . . . . . . . . . . . . . . . . . . . . . . . . Fabnet Peak Effective % . | . . . . . . . . . . . . . . . . . . . . . . . . Robots Rewired 13 | . . . . . . . . . . . . . . 1 12 . . . . . . . . Allies Hacked . | . . . . . . . . . . . . . . . . . . . . . . . . Hacks Repelled . | . . . . . . . . . . . . . . . . . . . . . . . . Allies | -11 -10 -10 -10 -9 -8 -7 -7 -7 -7 -7 -7 -6 -6 -5 -5 -5 -5 -5 -4 -3 -3 -2 -1 -------- Run | Yrd Mat Min Exi Min Mat Fac Was Fac Low Low Dat Pro Fac Fac Ext Cet Arc Hub Fac Res Qua Res Acc Total Allies 53 | . . 2 . . . . . . . . . . . 1 23 5 . . . . . . 22 Largest Group 21 | . . 1 1 . . . . . . . . . . 1 18 21 18 17 . . . . 12 Highest-Rated Group 1071 | . . 31 31 . . . . . . . . . . 29 643 1071 909 743 . . . . 167 Highest-Rated Ally 159 | . . 31 31 . . . . . . . . . . 29 159 153 153 96 . . . . 15 Total Orders 3 | . . . . . . . . . . . . . . 1 . . . 2 . . . . . STAY 1 | . . . . . . . . . . . . . . . . . . 1 . . . . . ROAM 1 | . . . . . . . . . . . . . . 1 . . . . . . . . . FOLLOW 1 | . . . . . . . . . . . . . . . . . . 1 . . . . . Ally Attacks 353 | . . 8 . . . . . . . . . . . 7 91 32 24 107 . . . . 84 Total Damage 8724 | . . 227 . . . . . . . . . . . 115 2038 998 657 2982 . . . . 1707 Kills 60 | . . 3 . . . . . . . . . . . 1 15 9 3 26 . . . . 3 Allies Corrupted . | . . . . . . . . . . . . . . . . . . . . . . . . Allies Melted . | . . . . . . . . . . . . . . . . . . . . . . . . Intel | -11 -10 -10 -10 -9 -8 -7 -7 -7 -7 -7 -7 -6 -6 -5 -5 -5 -5 -5 -4 -3 -3 -2 -1 ------- Run | Yrd Mat Min Exi Min Mat Fac Was Fac Low Low Dat Pro Fac Fac Ext Cet Arc Hub Fac Res Qua Res Acc Active Infowar (turns) 8787 | . 21 652 553 636 431 631 90 609 224 122 30 187 257 849 830 416 208 513 . 113 1048 176 191 Optics 4955 | . . . . . . 620 90 609 224 122 30 187 257 849 830 416 208 513 . . . . . Sensors 1485 | . . . . . . . . . . . . . . . . . . . . 113 1029 167 176 Terrain 3438 | . 21 652 552 . 427 405 90 384 97 122 30 187 69 402 . . . . . . . . . Seismic 2550 | . . . 1 636 431 596 90 38 . . . . 188 570 . . . . . . . . . T.N.C. 2 | . . . . . . . . . . . . . . . . . . . . . 2 . . Jamming 1322 | . . . . . . . . . 46 . . . . . . 102 31 . . . 811 176 156 Robot Analysis Total 2 | . . . . . . . . . . . . . . . . . . . . . 2 . . Derelict Logs Recovered 3 | . . 1 . 1 . . . . . . . 1 . . . . . . . . . . . Drone Launches . | . . . . . . . . . . . . . . . . . . . . . . . . Drone Recoveries . | . . . . . . . . . . . . . . . . . . . . . . . . Exploration | -11 -10 -10 -10 -9 -8 -7 -7 -7 -7 -7 -7 -6 -6 -5 -5 -5 -5 -5 -4 -3 -3 -2 -1 ------------- Run | Yrd Mat Min Exi Min Mat Fac Was Fac Low Low Dat Pro Fac Fac Ext Cet Arc Hub Fac Res Qua Res Acc Turns Passed 10174 | . 255 652 553 636 431 631 90 609 224 122 30 187 257 849 830 416 208 522 633 147 1053 194 645 Spaces Moved 10376 | 1 114 421 345 374 261 456 104 876 352 332 80 312 486 1158 603 181 127 688 1103 200 1067 296 439 Core 158 | . . . . . . . . . . . . . . . . . . . . . . . 158 Treads 1088 | . . 290 345 374 1 . . . . . . . . . . . . . . . . . 78 Legs 273 | 1 114 131 . . . . . . . . . . . . . . . . . . . . 27 Wheels 1011 | . . . . . 260 456 104 191 . . . . . . . . . . . . . . . Hover 7846 | . . . . . . . . 685 352 332 80 312 486 1158 603 181 127 688 1103 200 1067 296 176 Flight . | . . . . . . . . . . . . . . . . . . . . . . . . Fastest Speed 33 | 120 120 120 160 160 105 80 85 38 36 36 36 36 35 33 40 41 41 41 37 41 44 43 49 Average Speed 65 | 120 120 147 160 160 105 96 85 48 40 36 36 39 37 42 44 48 41 41 39 41 70 45 103 Slowest Speed 240 | 120 120 160 160 160 160 105 85 101 100 36 36 108 40 160 48 92 41 41 45 44 111 49 240 Overloaded Moves . | . . . . . . . . . . . . . . . . . . . . . . . . Propulsion Burnouts . | . . . . . . . . . . . . . . . . . . . . . . . . Robots Hopped . | . . . . . . . . . . . . . . . . . . . . . . . . Potential Cave-ins 11 | . . . . . . . . . . . . . . 3 8 . . . . . . . . Cave-ins Triggered . | . . . . . . . . . . . . . . . . . . . . . . . . Exploration Rate (%) 45 | 1 20 88 74 71 22 20 68 25 59 65 71 53 15 41 65 71 84 47 31 12 68 12 11 Regions Visited 23 Branch Regions 12 Pre-discovered Areas 3 | . . 1 1 . . . . . . . 1 . . . . . . . . . . . . Known Exits Taken 10 | . . . . . . . . 1 1 . . 1 1 1 . . . 1 1 1 1 1 . Unknown Exits Taken 11 | 1 1 1 1 1 1 . . . . 1 1 . . . 1 1 1 . . . . . . Scrap Searched 9 | . . 1 . 2 . . . . 3 1 . 2 . . . . . . . . . . . Spaces Dug 111 | . . . . . 3 . . 14 2 . . . 12 35 17 . . 5 9 6 4 1 3 Terrain Destroyed 479 | . . 20 . . 3 50 . 46 2 . . . 12 65 23 5 2 182 9 7 4 1 48 Melee 74 | . . . . . 3 . . 13 . . . . 11 20 . . . 5 9 6 3 1 3 Projectile 70 | . . . . . . 2 . 2 2 . . . 1 17 23 5 2 11 . 1 1 . 3 AOE 335 | . . 20 . . . 48 . 31 . . . . . 28 . . . 166 . . . . 42 Terrain Rammed . | . . . . . . . . . . . . . . . . . . . . . . . . Walls Destroyed . | . . . . . . . . . . . . . . . . . . . . . . . . Machines Disabled . | . . . . . . . . . . . . . . . . . . . . . . . . Actions | -11 -10 -10 -10 -9 -8 -7 -7 -7 -7 -7 -7 -6 -6 -5 -5 -5 -5 -5 -4 -3 -3 -2 -1 --------- Run | Yrd Mat Min Exi Min Mat Fac Was Fac Low Low Dat Pro Fac Fac Ext Cet Arc Hub Fac Res Qua Res Acc Total 13046 | . 180 444 347 407 382 598 105 1006 408 333 80 358 528 1400 1113 488 254 869 1274 238 1328 329 577 Wait 1541 | . 36 4 . 28 91 77 . 12 27 . 1 28 10 50 315 276 95 137 95 13 169 5 72 Move 10354 | . 113 420 344 373 260 456 103 875 351 331 79 311 485 1157 602 180 126 687 1102 199 1066 295 439 Hop . | . . . . . . . . . . . . . . . . . . . . . . . . Pick Up 130 | . 1 4 . 1 5 12 2 16 3 2 . 1 5 22 17 2 3 1 20 . 9 1 3 Fast Attach 98 | . 2 . . . 1 3 . 8 . . . 3 4 11 8 1 2 5 11 3 18 2 16 Attach 84 | . . 2 . . 4 6 . 1 3 . . 2 1 14 4 2 2 2 11 3 10 9 8 Detach 31 | . . . . . 1 2 . 2 . . . 1 . 2 3 1 3 . 1 1 11 . 3 Swap 130 | . 2 3 2 1 3 10 . 12 12 . . 2 4 24 6 8 2 3 14 4 9 5 4 Drop 130 | . 1 5 1 . . 8 . 23 . . . 1 3 35 12 7 4 4 7 . 16 . 3 Fire 205 | . 25 6 . 1 14 24 . 6 6 . . 2 1 22 25 11 5 24 . 8 2 . 23 Melee 214 | . . . . . 3 . . 30 6 . . 6 15 60 20 . 12 6 13 7 18 12 6 Ram 1 | . . . . . . . . . . . . 1 . . . . . . . . . . . Kick . | . . . . . . . . . . . . . . . . . . . . . . . . Crush 3 | . . . . 3 . . . . . . . . . . . . . . . . . . . Escape Stasis 47 | . . . . . . . . 21 . . . . . . 26 . . . . . . . . Rewire 78 | . . . . . . . . . . . . . . 3 75 . . . . . . . . Trap . | . . . . . . . . . . . . . . . . . . . . . . . . Miscellaneous . | . . . . . . . . . . . . . . . . . . . . . . . . Route ------- -11/Scrapyard -10/Materials -10/Mines (discovered 3 exits: [*Mat x2] / *Exi) -10/Exiles -9/Mines -8/Materials -7/Factory -7/Waste -7/Factory (discovered 2 exits: *Fac / *Low) -7/Lower Caves -7/Lower Caves -7/Data Miner -6/Proximity Caves -6/Factory (discovered 4 exits: *Fac x4) -5/Factory (discovered 6 exits: *Fac x2 / Upp x2 / *Ext x2) -5/Extension (discovered 2 exits: *Fac / *Cet) -5/Cetus (discovered 2 exits: *Fac / [*Arc]) -5/Archives (discovered 3 exits: *Fac / *Hub x2) -5/Hub_04(d) (discovered 4 exits: *Fac x4) -4/Factory (discovered 7 exits: *Res x4 / *Upp x2 / Arm) -3/Research (discovered 5 exits: Res x3 / *Qua x2) -3/Quarantine -2/Research (discovered 5 exits: *Acc x3 / Tes x2) -1/Access (discovered 1 exit: Sur) History --------- Turn | Location | Event 1 | -11/Scrapyard | Discovered new exit (range 0) 1 | -11/Scrapyard | Entered Materials 149 | -10/Materials | Discovered new exit (range 14) 256 | -10/Materials | Entered Mines 313 | -10/Mines | Build established: Mutant 324 | -10/Mines | Received a Mining Laser from a helpful Derelict 414 | -10/Mines | A weapon hastily lodged in a ceiling crevice suddenly fell to the ground 489 | -10/Mines | Deemed a non-threat by the Exiles lab entrance 489 | -10/Mines | Discovered new exit (range 5) 502 | -10/Mines | Found a hidden stash of uninstalled traps 552 | -10/Mines | Discovered new exit (range 6) 581 | -10/Mines | Discovered new exit (range 16) 583 | -10/Mines | Learned location of Zion (-6) 606 | -10/Mines | Escorted by a lone wolf Derelict 908 | -10/Mines | Entered Exiles 908 | -10/Exiles | Accompanied by 1 ally 947 | -10/Exiles | Met 8R-AWN 976 | -10/Exiles | Met EX-HEX 1027 | -10/Exiles | Met EX-BIN 1086 | -10/Exiles | Met EX-DEC 1137 | -10/Exiles | Visited The Gauntlet 1447 | -10/Exiles | Discovered new exit (range 10) 1461 | -10/Exiles | Entered Mines 1505 | -9/Mines | Learned location of 1 exit from Lower Caves 1536 | -9/Mines | YI-UF0 nonchalantly dropped a Grenade Launcher on the ground 1973 | -9/Mines | Assembled infested the area 2079 | -9/Mines | Discovered new exit (range 10) 2097 | -9/Mines | Entered Materials 2097 | -8/Materials | Evolved 4 slots: Propulsion x2, Utility x1, Weapon x1 2459 | -8/Materials | Discovered new exit (range 10) 2528 | -8/Materials | Entered Factory 2528 | -7/Factory | Evolved 2 slots: Propulsion x1, Utility x1 2643 | -7/Factory | Build established: Skirmisher 2655 | -7/Factory | Discovered new exit (range 3) 2984 | -7/Factory | Lost 3 parts (1p1n1w) 3159 | -7/Factory | Sucked down chute 3159 | -7/Factory | Entered Waste 3164 | -7/Waste | Spotted C-40 Crusher 3174 | -7/Waste | EMP discharged 3197 | -7/Waste | Spotted C-40 Crusher 3198 | -7/Waste | Spotted C-40 Crusher 3212 | -7/Waste | Spotted C-40 Crusher 3212 | -7/Waste | Spotted C-40 Crusher 3226 | -7/Waste | Discovered new exit (range 18) 3229 | -7/Waste | Spotted C-40 Crusher 3249 | -7/Waste | Entered Factory 3602 | -7/Factory | Build established: Gladiator 3629 | -7/Factory | Discovered new exit (range 12) 3631 | -7/Factory | Discovered new exit (range 18) 3858 | -7/Factory | Identified exit to Lower Caves 3858 | -7/Factory | Entered Lower Caves 3859 | -7/Lower Caves | Identified exit to Lower Caves 3886 | -7/Lower Caves | Attracted the attention of an 0b10 checkpoint 3915 | -7/Lower Caves | Encountered a Warlord checkpoint 4067 | -7/Lower Caves | Spotted B-75 Beast 4082 | -7/Lower Caves | Entered another Lower Caves area 4089 | -7/Lower Caves | Encountered a Warlord checkpoint 4202 | -7/Lower Caves | Discovered new exit (range 5) 4204 | -7/Lower Caves | Entered Data Miner 4204 | -7/Data Miner | Discovered new exit (range 6) 4211 | -7/Data Miner | Met Data Miner 4221 | -7/Data Miner | Learned location of Section 7 (-3) 4221 | -7/Data Miner | Acquired the access code to Warlord's prototype stash 4225 | -7/Data Miner | Received God Mode back door access code from Data Miner 4234 | -7/Data Miner | Entered Proximity Caves 4234 | -6/Proximity Caves | Identified exit to Factory 4282 | -6/Proximity Caves | Build established: Mutant 4402 | -6/Proximity Caves | Spotted B-75 Beast 4421 | -6/Proximity Caves | Entered Factory 4421 | -6/Factory | Evolved 2 slots: Propulsion x1, Utility x1 4519 | -6/Factory | Identified exit to Factory 4678 | -6/Factory | Entered another Factory area 4678 | -5/Factory | Evolved 2 slots: Utility x2 4767 | -5/Factory | Fabricated Cld. Aerolev Unit (x1) 4807 | -5/Factory | Identified exit to Upper Caves 4807 | -5/Factory | Identified exit to Extension 4948 | -5/Factory | Discovered new exit (range 11) 5249 | -5/Factory | Discovered new exit (range 8) 5249 | -5/Factory | Garrison activated, responded to threat 5418 | -5/Factory | Garrison activated, responded to threat 5527 | -5/Factory | Entered Extension 5545 | -5/Extension | Rescued a captive Derelict 5545 | -5/Extension | Rescued a captive Derelict 5548 | -5/Extension | Lost 11 parts (2p4n3u2w) 5576 | -5/Extension | Rescued A7 5654 | -5/Extension | Rescued a captive Derelict 5786 | -5/Extension | Build established: Hacker-Mutant 5798 | -5/Extension | Rescued a captive Derelict 6012 | -5/Extension | Rescued a captive Derelict 6012 | -5/Extension | Rescued a captive Derelict 6249 | -5/Extension | Rescued a captive Derelict 6250 | -5/Extension | Rescued a captive Derelict 6257 | -5/Extension | Rescued a captive Derelict 6258 | -5/Extension | Rescued a captive Derelict 6269 | -5/Extension | Discovered new exit (range 10) 6270 | -5/Extension | Discovered new exit (range 6) 6357 | -5/Extension | Entered Cetus 6357 | -5/Cetus | Accompanied by 17 allies (A7) 6362 | -5/Cetus | Acquired a Cetus Manufacturing Module code from A7 6369 | -5/Cetus | Spotted Cetus Guard 6369 | -5/Cetus | Spotted Cetus Guard 6375 | -5/Cetus | Spotted Cetus Guard 6377 | -5/Cetus | Spotted Cetus Guard 6378 | -5/Cetus | Allies destroyed Cetus Guard 6386 | -5/Cetus | Allies destroyed Cetus Guard 6386 | -5/Cetus | Allies destroyed Cetus Guard 6391 | -5/Cetus | Allies destroyed Cetus Guard 6428 | -5/Cetus | Started Cetus Manufacturing Module 6432 | -5/Cetus | Escorted A7 to Cetus Mainframe 6453 | -5/Cetus | Manufactured an Enhanced Grunt 6478 | -5/Cetus | Manufactured an Enhanced Grunt 6503 | -5/Cetus | Manufactured an Enhanced Grunt 6528 | -5/Cetus | Manufactured an Enhanced Grunt 6553 | -5/Cetus | Manufactured an Enhanced Grunt 6574 | -5/Cetus | Discovered new exit (range 17) 6608 | -5/Cetus | Spotted Cetus Guard 6609 | -5/Cetus | Spotted Cetus Guard 6615 | -5/Cetus | Destroyed Cetus Guard 6625 | -5/Cetus | Spotted Cetus Guard 6625 | -5/Cetus | Spotted Cetus Guard 6637 | -5/Cetus | Allies destroyed Cetus Guard 6638 | -5/Cetus | Allies destroyed Cetus Guard 6638 | -5/Cetus | Allies destroyed Cetus Guard 6640 | -5/Cetus | Discovered new exit (range 18) 6644 | -5/Cetus | Met Revision 17 6692 | -5/Cetus | Build established: Commander-Gunner 6773 | -5/Cetus | Entered Archives 6773 | -5/Archives | Accompanied by 18 allies (A7) 6778 | -5/Archives | Received a hacking code to weaken MAIN.C 6811 | -5/Archives | Discovered new exit (range 18) 6841 | -5/Archives | Discovered new exit (range 18) 6883 | -5/Archives | Discovered new exit (range 13) 6981 | -5/Archives | Entered Hub_04(d) 6981 | -5/Hub_04(d) | Accompanied by 17 allies 7027 | -5/Hub_04(d) | Discovered new exit (range 14) 7034 | -5/Hub_04(d) | Identified exit to Factory 7071 | -5/Hub_04(d) | Build established: Commander-Mutant 7303 | -5/Hub_04(d) | Lost 6 allies 7373 | -5/Hub_04(d) | Network Hub disabled 7499 | -5/Hub_04(d) | Spotted Lightning 7503 | -5/Hub_04(d) | Entered Factory 7503 | -4/Factory | Evolved 2 slots: Power x1, Propulsion x1 7518 | -4/Factory | Discovered new exit (range 14) 7537 | -4/Factory | Discovered new exit (range 16) 7558 | -4/Factory | Build established: Hacker-Mutant 7686 | -4/Factory | Fabricated Imp. Gyrokinetic Inverter? 7694 | -4/Factory | Lost 4 parts (1n1u2w) 7723 | -4/Factory | Fabricated Lgt. Regenerative Plating? 7753 | -4/Factory | Search patrols dispatched 7809 | -4/Factory | Incoming investigation squad redirected 7866 | -4/Factory | Identified exit to Upper Caves 7866 | -4/Factory | Identified exit to Armory 8003 | -4/Factory | Repaired Imp. Gravmag System+ 8029 | -4/Factory | Repaired Imp. Gravmag System+ 8044 | -4/Factory | Repaired Lrg. Storage Unit 8090 | -4/Factory | Identified exit to Research 8136 | -4/Factory | Entered Research 8136 | -3/Research | Evolved 2 slots: Utility x2 8145 | -3/Research | Identified exit to Quarantine 8201 | -3/Research | Identified exit to Research 8283 | -3/Research | Entered Quarantine 8579 | -3/Quarantine | Repaired Adv. Reaction Control System 8862 | -3/Quarantine | Found Alien Artifact 8880 | -3/Quarantine | Identified Core Reset Matrix 8880 | -3/Quarantine | Used Core Reset Matrix 8884 | -3/Quarantine | Detected hypermatrix surge 8884 | -3/Quarantine | Sensed 14 artifacts in vicinity 9232 | -3/Quarantine | Found Terrabomb 9327 | -3/Quarantine | Discovered exit to Research (range 16) 9328 | -3/Quarantine | Spotted Alpha 7 9336 | -3/Quarantine | Entered Research 9336 | -2/Research | Evolved 2 slots: Propulsion x1, Utility x1 9372 | -2/Research | Identified exit to Testing 9418 | -2/Research | Identified exit to Access 9471 | -2/Research | Lost 4 parts (1p1n1u1w) 9477 | -2/Research | Spotted B-90 Cyclops 9519 | -2/Research | Used Terrabomb 9530 | -2/Research | Entered Access 9530 | -1/Access | Evolved 2 slots: Utility x2 9543 | -1/Access | Identified exit to Surface 9559 | -1/Access | Lost 8 parts (1p3n4u) 9725 | -1/Access | Lost 3 parts (2p1w) 9809 | -1/Access | Lost 9 parts (3n3u3w) 9891 | -1/Access | Core integrity fell below 50% 9897 | -1/Access | Released all parts (10) 9911 | -1/Access | Emitted hypermatrix ping 9916 | -1/Access | Assembled emerged from beneath the floor 9920 | -1/Access | Assembled emerged from beneath the floor 9928 | -1/Access | Lost 7 parts (1p4n2w) 9958 | -1/Access | Lost 10 allies 9972 | -1/Access | Assembled emerged from beneath the floor 10086 | -1/Access | Core integrity fell below 20% 10161 | -1/Access | System corruption reached 10% 10175 | -1/Access | Self-destructed Last Messages --------------- 10085_ Triggered Gamma Bomb Trap. 10085_ A bubble of electromagnetic force engulfs the area. 10085_ Gamma Bomb Trap short circuited. 10085_ A bubble of electromagnetic force engulfs the area. 10112_ Triggered Gamma Bomb Trap. 10112_ A bubble of electromagnetic force engulfs the area. 10112_ Y-72 Warden destroyed. 10114_ Triggered Gamma Bomb Trap. 10114_ A bubble of electromagnetic force engulfs the area. 10122_ System corrupted: Matter fused (-10). 10126_ Acquired 60 matter. 10142_ System corrupted: Energy discharge (-45). 10159_ Acquired Unknown Treads. 10159_ Identified Adv. Heavy Siege Treads. 10162_ System corrupted: Matter fused (-5). 10175_ Imp. Heavy Siege Treads destroyed. Map ----- +----------------------------------------------------+ | #????????????????????????????????????????????????? | | #????????????????????????????????????????????????? | | #????????????????????????????????????????????????? | | #????????????????????????????????????????????????? | | #????????????????????????????????????????????????? | | #????????????????????????????????????????????????? | | #????????????????????????!????????????????????*??? | | #????????????????????????????????????????????????? | | #????????????????????????????????????????????????? | | #????????????????????????????????????????????????? | | #????????????????????????????????????????????????? | | #????????????????????????????????????????????????? | | ##############+### ? ????????????????????????????? | | ? ???????????????????????????? | | ? ???????????????????????????? | | ? ??????????????????????????? | | #### #########??? ??????????????????????????? | | ???# #??????????? #??????????????????????????? | | ???# #??????????? #??????????????????????????? | | ???# #??????????# #??????????????????????????? | | ???# #??????????#% #??????????????????????????? | | ???# ############ #??????????????????????????? | | ??## ## ## #??????????????????????????? | | ??# # ## ##?????????????????????????? | | +## # # ###############???????????? | | H + # T @ "???????????? | | ### # + "" "???????????? | | ??# # # p p "???????????? | | ??####### # ###/###########???????????? | | ????????# ## ## p #??????????????????? | | ????????# ! ## ## #??????????????????? | | ????????########### ## #??????????????????? | | ??????????????????# ## #??????????????????? | | ??????????????????# ## #??????????????????? | | ??????????????????# ## #??????????????????? | | ??????????????????# ## #??????????????????? | | ??????????????????# ## #??????????????????? | | ??????????????????# ## #??????????????????? | | ??????????????????# ## #??????????????????? | | ??????????????????# ## #??????????????????? | | ??????????????????# ## #??????????????????? | | ??????????????????# + #??????????????????? | | ?????############## ## #??????????????????? | | ?????# # #########??????????????????? | | ?????# # #??????????????????????????? | | ?????# # #??????????????????????????? | | ?????# # #??????????????????????????? | | ?????# # #??????????????????????????? | | ?????# + #??????????????????????????? | | ?????# " # #??????????????????????????? | +----------------------------------------------------+ Best States ------------- Heat Dissipation 71 Energy Generation 45 Energy Capacity 600 Matter Stores 300 Matter Capacity 300 Sight Range 22 Robot Scan Range 18 Terrain Scan Range 16 Terrain Scan Density 210 Jamming Range 14 Armor Coverage 450 Resistance: KI 25 Propulsion Shielding 66 Melee Speed Boost 20 Evasion (%) 68 Targeting Accuracy 16 Armor Integrity Analysis 40 Recoil Reduction 4 Offensive Hacking 48 Defensive Hacking 14 Item Schematics ----------------- None Robot Schematics ------------------ None Fabricated ------------ Cld. Aerolev Unit | x1 | -5/Factory Imp. Gyrokinetic Inverter | x2 | -4/Factory | Preloaded Lgt. Regenerative Plating | x1 | -4/Factory Repaired ---------- Imp. Gravmag System | 12% | -4/Factory Imp. Gravmag System | 12% | -4/Factory Lrg. Storage Unit | 9% | -4/Factory Adv. Reaction Control System | 14% | -3/Quarantine Studied --------- None Alien Tech Used ----------------- Core Reset Matrix Terrabomb Achievements -------------- Ghost 'Em I Laugh At Your Crits Challenges ------------ None Game ------ Seed DataRemoteMediator Manual? 0 Play Time 03:16:50 Cumulative 295.5 hours Start 2026.01.12 @ 16:34:28 End 2026.01.12 @ 23:01:35 Sessions 5 Manual Loads 0 Difficulty Rogue Special Mode None Game No. 190 Rogue 190 Adventurer 0 Explorer 0 Win Type - Total 5 Types 4/0/0/1/0/0/0/0/0/0 Lore% 41 Gallery% 61 Achievement% 40 Wizard Run 0 Options --------- Layout 2 ASCII 0 Keyboard 1 Movement Numpad Keybinds 0 Fullscreen 1 Font 32/SmallcapsGlow Map View 50x44 Zoom Use 0% Tactical HUD 1 Map Filters NONE Filters NONE Steam 1 RUN: c627acb3-0064-4e8e-ba95-678f1611aedc